bitfinex-derivatives/quotes_SOLF0:USTF0_20250415
["timestamp","ask_amount","ask_price","bid_price","bid_amount"]
[1744679053015,7.776,128.61,128.6,0.05416187]
[1744679054520,6.231,128.62,128.55,36.2349]
[1744679055120,7.7767,128.6,128.56,7.7787]
[1744679055419,6.231,128.62,128.56,7.7787]
[1744679055618,0.05243471,128.59,128.56,7.7787]
[1744679055919,7.82973471,128.59,128.56,7.7787]
[1744679056521,0.05243471,128.59,128.55,36.2349]
[1744679059224,0.05243471,128.59,128.58,7.7778]
[1744679059427,0.05243471,128.59,128.58,37.6978]
[1744679062129,31.9771,128.66,128.58,29.92]
[1744679062628,7.7744,128.64,128.6,7.7762]
[1744679062929,31.9771,128.66,128.6,7.7762]
[1744679063226,0.05268135,128.64,128.62,0.05805303]
[1744679063930,7.775,128.63,128.62,0.05805303]
[1744679064630,0.05268135,128.64,128.58,29.92]
[1744679064631,7.7768,128.6,128.58,29.92]
[1744679065033,41.99711264,128.63,128.58,29.92]
[1744679065233,7.779,128.57,128.55,29.94]
[1744679065424,7.779,128.57,128.54,29.92]
[1744679065632,7.779,128.57,128.54,37.6999]
[1744679065933,0.05160611,128.57,128.54,29.92]
[1744679066133,0.05160611,128.57,128.55,7.7792]
[1744679067433,0.05160611,128.57,128.56,7.779]
[1744679067735,0.05160611,128.57,128.54,29.92]
[1744679069435,0.05160611,128.57,128.55,7.7796]
[1744679069637,0.05160611,128.57,128.54,29.92]
[1744679070539,0.05160611,128.57,128.55,7.7793]
[1744679073938,0.05160611,128.57,128.56,7.779]
[1744679076941,6.11e-06,128.57,128.56,7.779]
[1744679077145,39.5444536,128.66,128.56,9.5905536]
[1744679077347,39.5444536,128.66,128.57,29.94]
[1744679077546,7.7764,128.61,128.58,7.7775]
[1744679078143,7.7766,128.6,128.57,37.7182]
[1744679078344,7.7766,128.6,128.58,0.0565113]
[1744679078548,0.05702329,128.61,128.58,0.0565113]
[1744679078845,7.7772,128.59,128.58,0.0565113]
[1744679079243,0.05702329,128.61,128.58,0.0565113]
[1744679080048,0.05702329,128.61,128.59,7.7769]
[1744679080548,0.05702329,128.61,128.58,0.0565113]
[1744679081354,7.7766,128.6,128.58,0.0565113]
[1744679083149,7.7766,128.6,128.58,7.8343113]
[1744679084352,7.7766,128.6,128.58,7.8342113]
[1744679084752,7.7766,128.6,128.58,0.0565113]
[1744679085253,7.83332329,128.61,128.58,0.0565113]
[1744679086054,7.83332329,128.61,128.58,7.8340113]
[1744679086552,7.7767,128.6,128.58,7.8340113]
[1744679087455,7.7772,128.59,128.58,0.0565113]
[1744679088360,7.7767,128.6,128.58,0.0565113]
[1744679095758,7.7772,128.59,128.58,0.0565113]
[1744679096156,7.777,128.6,128.58,0.0565113]
[1744679096356,0.05702329,128.61,128.58,0.0565113]
[1744679097061,7.7766,128.6,128.58,0.0565113]
[1744679097266,0.05702329,128.61,128.58,0.0565113]
[1744679097765,7.7772,128.59,128.58,0.0565113]
[1744679099163,0.05702329,128.61,128.58,0.0565113]
[1744679099462,0.05702329,128.61,128.59,7.7768]
[1744679100462,7.83302329,128.61,128.58,7.8340113]
[1744679100763,0.05702329,128.61,128.58,0.0565113]
[1744679101263,7.7772,128.59,128.58,0.0565113]
[1744679102166,29.92,128.59,128.5,29.92]
[1744679102364,7.5473536,128.56,128.5,29.92]
[1744679102663,37.4673536,128.59,128.5,37.4673536]
[1744679103055,37.4673536,128.59,128.53,7.7805]
[1744679103255,0.05413254,128.56,128.53,37.7005]
[1744679103862,7.83363254,128.56,128.53,37.7005]
[1744679104065,0.05413254,128.56,128.53,29.92]
[1744679104266,7.5473536,128.55,128.48,29.92]
[1744679104564,7.5473536,128.51,128.44,37.7061]
[1744679104968,7.785,128.47,128.44,29.92]
[1744679105364,0.05435462,128.49,128.44,29.92]
[1744679105564,0.05435462,128.49,128.43,7.7867]
[1744679105763,0.05435462,128.49,128.43,7.5473536]
[1744679105963,7.7846,128.47,128.43,7.5473536]
[1744679106365,0.05212458,128.46,128.44,29.94]
[1744679107070,0.05212458,128.46,128.44,37.4873536]
[1744679107367,7.7818,128.52,128.44,37.4873536]
[1744679107670,7.7818,128.52,128.48,7.7836]
[1744679107870,2.0215,128.54,128.48,29.94]
[1744679108265,0.05855387,128.52,128.5,0.05487995]
[1744679108569,7.84005387,128.52,128.5,0.05487995]
[1744679109771,7.7821,128.51,128.5,0.05487995]
[1744679110172,0.05855387,128.52,128.5,0.05487995]
[1744679112073,7.7821,128.51,128.5,0.05487995]
[1744679112372,0.05855387,128.52,128.45,37.4873536]
[1744679112672,7.5473536,128.53,128.45,37.4873536]
[1744679112866,2.0215,128.54,128.45,37.4873536]
[1744679113173,2.0215,128.54,128.47,7.7841]
[1744679113473,0.05048079,128.51,128.47,7.7841]
[1744679113673,7.83288079,128.51,128.47,7.7841]
[1744679114069,0.05048079,128.51,128.46,7.7849]
[1744679114670,7.59783439,128.51,128.45,29.94]
[1744679114871,7.5473536,128.49,128.41,37.4873536]
[1744679115272,0.05454502,128.46,128.41,37.4873536]
[1744679115772,0.05454502,128.46,128.45,7.7857]
[1744679115974,7.5473536,128.53,128.45,37.4873536]
[1744679115975,29.94,128.53,128.45,37.4873536]
[1744679116376,361.1654,128.54,128.46,7.5473536]
[1744679116876,2.1275,128.55,128.48,7.5473536]
[1744679117076,5.663e-05,128.51,128.5,7.5473536]
[1744679117272,359.1623,128.58,128.5,7.5473536]
[1744679117478,359.1623,128.58,128.54,7.7799]
[1744679118278,359.1623,128.58,128.55,7.7795]
[1744679118479,0.05205435,128.57,128.55,7.83172404]
[1744679118676,0.05205435,128.57,128.55,0.05222404]
[1744679118979,0.05205435,128.57,128.55,7.83152404]
[1744679119279,0.05205435,128.57,128.55,0.05222404]
[1744679120279,7.83055435,128.57,128.55,0.05222404]
[1744679120676,0.05205435,128.57,128.55,0.05222404]
[1744679121075,7.779,128.56,128.55,0.05222404]
[1744679122184,7.83085435,128.57,128.55,0.05222404]
[1744679122483,0.05205435,128.57,128.55,7.83142404]
[1744679122881,0.05205435,128.57,128.55,0.05222404]
[1744679123877,0.05205435,128.57,128.55,7.83182404]
[1744679124476,0.05205435,128.57,128.55,0.05222404]
[1744679124979,7.779,128.56,128.55,0.05222404]
[1744679128281,7.5473536,128.56,128.5,29.92]
[1744679128470,7.5473536,128.54,128.5,29.92]
[1744679128878,7.7821,128.51,128.5,29.92]
[1744679130074,7.7827,128.5,128.49,0.04967746]
[1744679130680,7.7823,128.51,128.49,0.04967746]
[1744679130873,0.0530823,128.52,128.49,0.04967746]
[1744679131077,7.7827,128.5,128.49,0.04967746]
[1744679132879,0.0530823,128.52,128.49,0.04967746]
[1744679133177,0.0530823,128.52,128.5,37.7223]
[1744679133377,0.0530823,128.52,128.5,29.94]
[1744679133680,0.0530823,128.52,128.49,0.04967746]
[1744679134085,0.0530823,128.52,128.51,7.7821]
[1744679134278,0.0530823,128.52,128.5,29.94]
[1744679134875,0.0530823,128.52,128.49,0.04967746]
[1744679135185,7.7827,128.5,128.49,0.04967746]
[1744679144795,7.7823,128.51,128.49,0.04967746]
[1744679145395,7.7827,128.5,128.49,0.04967746]
[1744679146001,7.7855,128.46,128.43,41.7282536]
[1744679146402,7.7842,128.48,128.43,41.7282536]
[1744679146701,7.7842,128.48,128.45,7.7853]
[1744679147002,7.83556289,128.48,128.45,7.7853]
[1744679147301,7.7846,128.47,128.44,7.786]
[1744679147903,7.7852,128.46,128.43,41.9675]
[1744679148103,0.05136289,128.48,128.43,34.1809]
[1744679148404,0.05136289,128.48,128.43,31.9893]
[1744679149202,0.05136289,128.48,128.43,39.5366536]
[1744679149603,7.7847,128.47,128.44,7.786]
[1744679152101,7.7851,128.46,128.44,7.786]
[1744679152301,7.59871649,128.48,128.4,37.4873536]
[1744679152498,7.5473536,128.48,128.41,29.94]
[1744679152701,0.0506407,128.45,128.41,29.94]
[1744679152906,0.0506407,128.45,128.42,7.787]
[1744679153506,0.0506407,128.45,128.43,7.7866]
[1744679154202,7.8364407,128.45,128.42,7.7872]
[1744679154407,0.0506407,128.45,128.41,29.94]
[1744679154910,7.5473536,128.44,128.38,29.94]
[1744679155106,11.8478536,128.44,128.38,29.94]
[1744679155311,7.7891,128.4,128.38,29.94]
[1744679155810,7.7886,128.41,128.38,37.7294]
[1744679156110,0.0547636,128.42,128.38,29.94]
[1744679156510,0.0547636,128.42,128.38,37.4873536]
[1744679156809,0.0547636,128.42,128.41,7.7881]
[1744679157608,0.0547636,128.42,128.41,37.7281]
[1744679157812,0.0547636,128.42,128.41,29.94]
[1744679158203,0.0547636,128.42,128.41,37.7281]
[1744679158607,0.0547636,128.42,128.41,29.94]
[1744679159920,7.8422636,128.42,128.41,29.94]
[1744679160213,0.0547636,128.42,128.38,29.94]
[1744679160816,7.7882,128.41,128.39,7.7891]
[1744679161014,0.0547636,128.42,128.38,29.94]
[1744679162108,7.7885,128.41,128.38,37.7299]
[1744679162616,7.7888,128.4,128.38,37.7299]
[1744679162817,0.0547636,128.42,128.38,29.94]
[1744679163716,7.789,128.4,128.38,29.94]
[1744679163916,0.0547636,128.42,128.38,37.7299]
[1744679164316,7.7888,128.4,128.38,37.7299]
[1744679165718,7.7883,128.41,128.38,37.7299]
[1744679167019,7.6021172,128.42,128.34,29.96]
[1744679167219,7.5473536,128.42,128.34,29.96]
[1744679167519,0.05810125,128.39,128.34,29.96]
[1744679168117,7.84770125,128.39,128.36,7.7908]
[1744679168319,0.05810125,128.39,128.34,29.96]
[1744679168519,7.7903,128.38,128.35,7.7915]
[1744679168719,0.05810125,128.39,128.34,29.96]
[1744679169321,7.7909,128.37,128.34,37.7521]
[1744679170018,0.05810125,128.39,128.29,560.48]
[1744679170219,7.5473536,128.34,128.25,37.5073536]
[1744679170424,7.5473536,128.34,128.26,29.96]
[1744679170617,0.05861255,128.31,128.27,7.7963]
[1744679170921,0.05861255,128.31,128.27,7.5473536]
[1744679171112,0.05861255,128.31,128.29,7.7951]
[1744679171313,0.05861255,128.31,128.27,9.7303536]
[1744679172823,7.85281255,128.31,128.28,7.7957]
[1744679173316,0.05861255,128.31,128.26,29.96]
[1744679173522,0.05861255,128.31,128.26,37.7569]
[1744679173923,7.7952,128.3,128.26,37.7569]
[1744679175022,7.7952,128.3,128.27,7.7966]
[1744679175618,0.05861255,128.31,128.26,37.757]
[1744679175824,0.05861255,128.31,128.26,29.96]
[1744679177118,0.05861255,128.31,128.27,7.5473536]
[1744679177518,0.05861255,128.31,128.28,2.1689]
[1744679177723,0.05861255,128.31,128.26,29.96]
[1744679178218,7.795,128.3,128.27,7.7963]
[1744679178423,0.05861255,128.31,128.26,37.5073536]
[1744679179026,0.05861255,128.31,128.26,29.96]
[1744679179526,7.7949,128.3,128.26,37.757]
[1744679180324,7.7949,128.3,128.27,7.7966]
[1744679180525,7.7956,128.29,128.26,29.96]
[1744679180727,37.56596615,128.31,128.24,7.7982]
[1744679180917,37.5073536,128.31,128.24,7.7982]
[1744679181119,0.04897849,128.29,128.16,1.35677804]
[1744679181323,7.5473536,128.26,128.17,8.96713063]
[1744679181622,7.7995,128.23,128.17,7.5473536]
[1744679181831,7.5473536,128.26,128.17,15.3494536]
[1744679182028,0.05652908,128.21,128.17,7.5473536]
[1744679182227,0.05652908,128.21,128.18,29.98]
[1744679182528,0.05652908,128.21,128.18,37.7816]
[1744679182925,0.05652908,128.21,128.18,37.7818]
[1744679183130,0.05652908,128.21,128.18,29.98]
[1744679183631,0.05652908,128.21,128.19,7.8011]
[1744679183825,0.05652908,128.21,128.18,29.98]
[1744679184432,0.05652908,128.21,128.2,7.8009]
[1744679184626,0.05652908,128.21,128.19,7.5473536]
[1744679184627,29.98,128.27,128.19,7.5473536]
[1744679184832,29.98,128.27,128.21,7.5473536]
[1744679185026,357.0,128.28,128.21,37.5273536]
[1744679185325,357.0,128.28,128.23,7.5473536]
[1744679185527,7.7946,128.31,128.28,7.7957]
[1744679185932,7.84742779,128.31,128.28,7.85474662]
[1744679186929,7.7949,128.3,128.28,0.05904662]
[1744679187227,0.05282779,128.31,128.28,0.05904662]
[1744679187934,0.05282779,128.31,128.28,7.85474662]
[1744679188631,7.84732779,128.31,128.28,7.85474662]
[1744679188831,0.05282779,128.31,128.29,7.7953]
[1744679189032,0.05282779,128.31,128.28,7.60640022]
[1744679189231,0.05282779,128.31,128.29,30.66]
[1744679190531,0.05282779,128.31,128.29,38.455]
[1744679191439,0.05282779,128.31,128.29,30.66]
[1744679191941,0.05282779,128.31,128.29,38.4553]
[1744679192540,0.05282779,128.31,128.29,30.66]
[1744679192935,357.0,128.3,128.28,0.05904662]
[1744679193136,7.7981,128.25,128.21,7.7999]
[1744679193336,7.5473536,128.27,128.2,30.66]
[1744679193641,7.7982,128.25,128.21,7.8002]
[1744679194037,7.5473536,128.27,128.21,7.8002]
[1744679194239,0.05444213,128.24,128.21,7.8002]
[1744679194538,7.85294213,128.24,128.2,38.4606]
[1744679194838,0.05444213,128.24,128.2,38.4606]
[1744679195039,7.85314213,128.24,128.2,38.4606]
[1744679195842,0.05444213,128.24,128.2,30.66]
[1744679196243,7.85344213,128.24,128.2,38.4604]
[1744679196543,0.05444213,128.24,128.2,38.4604]
[1744679196742,0.05444213,128.24,128.2,30.66]
[1744679197142,7.7992,128.23,128.2,30.66]
[1744679197844,7.7992,128.23,128.2,38.4604]
[1744679198147,7.7997,128.22,128.2,30.66]
[1744679198747,0.05444213,128.24,128.2,30.66]
[1744679199046,7.7996,128.23,128.2,38.4609]
[1744679199240,7.7996,128.23,128.2,30.66]
[1744679199441,0.05444213,128.24,128.2,30.66]
[1744679200145,7.8,128.22,128.2,30.66]
[1744679200445,0.05444213,128.24,128.2,30.66]
[1744679200745,7.7992,128.23,128.2,30.66]
[1744679200946,7.7992,128.23,128.2,38.4606]
[1744679201146,0.05444213,128.24,128.2,30.66]
[1744679201348,7.8003,128.21,128.2,30.66]
[1744679202153,7.8015,128.19,128.18,2.0641]
[1744679202347,38.2073536,128.25,128.18,2.0641]
[1744679202648,0.05637097,128.23,128.18,2.0641]
[1744679203151,7.8006,128.21,128.18,9.8659]
[1744679203750,7.8009,128.2,128.18,2.0641]
[1744679204152,7.85710219,128.2,128.18,2.0641]
[1744679206148,7.85710219,128.2,128.17,32.7024]
[1744679206354,0.05620219,128.2,128.17,30.66]
[1744679206754,7.8021,128.18,128.17,30.66]
[1744679206947,0.05620219,128.2,128.14,38.4642]
[1744679207154,7.5473536,128.21,128.14,38.4642]
[1744679207454,7.8028,128.17,128.14,38.4642]
[1744679207952,7.8028,128.17,128.15,7.8039]
[1744679208153,0.05263485,128.18,128.12,30.66]
[1744679208657,7.5473536,128.17,128.12,30.66]
[1744679208855,7.8049,128.14,128.12,30.66]
[1744679209153,0.05118497,128.14,128.12,30.66]
[1744679209350,0.05118497,128.14,128.09,591.94]
[1744679210450,0.05118497,128.14,128.0,561.32]
[1744679210451,7.8073,128.1,128.0,561.32]
[1744679210651,7.8073,128.1,128.04,7.5473536]
[1744679210856,0.0506986,128.06,128.05,38.49]
[1744679211055,7.8073,128.1,128.05,38.49]
[1744679211255,0.05703207,128.07,128.05,38.4898]
[1744679211758,0.05703207,128.07,128.05,30.68]
[1744679212052,7.8058,128.12,128.06,7.8094]
[1744679212257,7.5473536,128.15,128.06,2.1874]
[1744679212854,7.5473536,128.15,128.07,9.5989536]
[1744679213155,7.8052,128.13,128.09,7.8072]
[1744679213357,0.05533532,128.12,128.1,0.05095844]
[1744679213657,0.05533532,128.12,128.1,7.85795844]
[1744679213951,0.05533532,128.12,128.1,0.05095844]
[1744679214660,7.8064,128.11,128.1,0.05095844]
[1744679214959,0.05533532,128.12,128.1,0.05095844]
[1744679215356,7.86153532,128.12,128.1,0.05095844]
[1744679215560,0.05533532,128.12,128.1,0.05095844]
[1744679215761,7.8064,128.11,128.1,0.05095844]
[1744679217362,7.86123532,128.12,128.1,0.05095844]
[1744679217562,0.05533532,128.12,128.1,0.05095844]
[1744679218161,7.8064,128.11,128.1,0.05095844]
[1744679219563,0.05533532,128.12,128.06,31.2]
[1744679219763,43.42155077,128.12,128.06,31.2]
[1744679219968,2.1454,128.11,128.06,31.2]
[1744679220564,7.8088,128.08,128.06,31.2]
[1744679220965,0.05956831,128.08,128.06,31.2]
[1744679221161,7.8088,128.07,128.06,31.2]
[1744679222562,0.05956831,128.08,128.06,31.2]
[1744679224461,0.05956831,128.08,128.07,7.8088]
[1744679224666,33.3358,128.15,128.06,31.2]
[1744679225660,0.05723372,128.12,128.09,0.05056452]
[1744679225967,12.22344917,128.12,128.09,0.05056452]
[1744679226165,7.807,128.1,128.09,0.05056452]
[1744679226465,12.22344917,128.12,128.06,31.2]
[1744679226666,7.8084,128.08,128.06,31.2]
[1744679226866,43.36621545,128.08,127.96,31.2]
[1744679227167,12.16621545,128.03,127.94,4.2054]
[1744679227368,0.05067845,128.0,127.97,0.02280988]
[1744679227868,0.05067845,128.0,127.97,31.22280988]
[1744679228369,0.05067845,128.0,127.98,2.1806]
[1744679228766,0.05067845,128.0,127.98,9.9945]
[1744679229066,0.05067845,128.0,127.98,2.1806]
[1744679229767,0.05067845,128.0,127.99,7.8137]
[1744679229967,0.05067845,128.0,127.98,2.1806]
[1744679230471,0.05067845,128.0,127.97,31.22280988]
[1744679231565,0.05067845,128.0,127.97,39.03760988]
[1744679231867,0.05067845,128.0,127.97,31.22280988]
[1744679232368,0.05067845,128.0,127.97,0.02280988]
[1744679233069,12.16621545,127.99,127.91,593.04]
[1744679233269,24.3324309,127.92,127.8,31.22]
[1744679233470,12.16621545,127.89,127.81,5.49497129]
[1744679233665,12.16621545,127.89,127.82,1.43077129]
[1744679233864,16.31411545,127.91,127.8,43.38621545]
[1744679234071,7.8215,127.87,127.81,1.43081156]
[1744679234271,7.87736769,127.87,127.82,562.06]
[1744679234465,0.05586769,127.87,127.82,562.06]
[1744679235069,0.05586769,127.87,127.83,31.22]
[1744679235269,0.05586769,127.87,127.84,12.16621545]
[1744679235568,0.05586769,127.87,127.85,31.24]
[1744679235763,7.8175,127.93,127.85,35.5395]
[1744679235966,4.0483,127.96,127.87,12.16621545]
[1744679236171,190.8572644,128.01,127.89,12.16621545]
[1744679236373,7.8145,127.98,127.92,7.8176]
[1744679236673,178.69104895,128.01,127.91,16.46571545]
[1744679236869,178.69104895,128.01,127.94,7.8167]
[1744679237074,0.0504099,127.97,127.95,31.24]
[1744679237575,0.0504099,127.97,127.96,31.24]
[1744679238877,4.0617,128.05,127.96,43.40621545]
[1744679239078,12.16621545,128.09,127.98,12.16621545]
[1744679239287,2.1119,128.1,128.0,12.16621545]
[1744679239572,2.1119,128.1,128.01,31.24]
[1744679239772,2.1119,128.1,128.02,12.16621545]
[1744679240084,0.05367952,128.07,128.04,0.04951884]
[1744679240375,0.05367952,128.07,128.05,31.24]
[1744679240568,7.8065,128.11,128.06,7.8089]
[1744679240773,2.1155,128.14,128.05,31.24]
[1744679240973,2.1155,128.14,128.05,33.4037]
[1744679241178,2.1155,128.14,128.06,2.0252]
[1744679241377,2.1155,128.14,128.07,562.22]
[1744679241780,0.05485894,128.12,128.09,0.05969788]
[1744679241970,0.05485894,128.12,128.1,31.24]
[1744679242174,0.05485894,128.12,128.1,39.0468]
[1744679242477,12.16621545,128.18,128.1,31.24]
[1744679242679,12.16621545,128.2,128.1,43.40621545]
[1744679242978,12.16621545,128.2,128.1,31.24]
[1744679243281,12.16621545,128.2,128.12,7.8056]
[1744679243481,12.16621545,128.2,128.1,31.24]
[1744679243682,0.05097778,128.17,128.15,0.04980764]
[1744679243981,0.05097778,128.17,128.16,31.24]
[1744679245279,7.85367778,128.17,128.16,31.22]
[1744679245677,0.05097778,128.17,128.16,31.22]
[1744679247981,0.05097778,128.17,128.15,593.18980764]
[1744679248274,7.8033,128.16,128.15,593.18980764]
[1744679248481,19.7522365,128.16,128.1,32.36]
[1744679248678,19.7522365,128.13,128.1,32.36]
[1744679249174,7.8068,128.11,128.1,32.36]
[1744679249371,4.1523,128.15,128.1,32.36]
[1744679249571,0.05668937,128.12,128.1,32.36]
[1744679250279,0.05668937,128.12,128.09,0.05355578]
[1744679250575,7.807,128.1,128.09,0.05355578]
[1744679251172,7.8064,128.11,128.09,0.05355578]
[1744679251371,0.05668937,128.12,128.09,0.05355578]
[1744679251878,7.8064,128.11,128.09,0.05355578]
[1744679252073,0.05668937,128.12,128.09,0.05355578]
[1744679252782,19.7522365,128.1,128.06,594.28]
[1744679253175,7.8088,128.07,128.06,594.28]
[1744679253373,19.7522365,128.08,127.96,581.6122365]
[1744679253579,7.8107,128.04,128.0,7.8127]
[1744679253777,19.7522365,128.08,128.01,32.36]
[1744679253974,19.7522365,128.08,128.01,32.41812415]
[1744679254175,7.8114,128.03,128.01,32.41812415]
[1744679254379,7.86535097,128.03,128.01,32.41812415]
[1744679254885,0.05395097,128.03,128.01,32.41812415]
[1744679255279,0.05395097,128.03,128.02,7.8119]
[1744679255585,0.05395097,128.03,128.01,32.41812415]
[1744679256385,19.7522365,128.12,128.04,7.8105]
[1744679256586,19.7522365,128.12,128.05,32.36]
[1744679256785,19.7522365,128.1,128.06,32.36]
[1744679256988,7.8088,128.07,128.06,32.36]
[1744679257283,32.36,128.13,128.01,7.8119]
[1744679257487,19.80280683,128.08,128.05,0.04969615]
[1744679257688,19.80280683,128.08,128.02,32.36]
[1744679257885,19.80280683,128.08,128.05,0.05719906]
[1744679258786,19.7522365,128.06,127.98,4.2691]
[1744679259090,19.7522365,128.06,127.99,32.36]
[1744679259289,7.8116,128.03,127.99,40.1733]
[1744679259890,7.87097693,128.02,128.0,0.0518146]
[1744679260379,0.05897693,128.02,128.0,32.4318146]
[1744679260578,7.8125,128.01,128.0,32.4318146]
[1744679261388,7.87107693,128.02,128.0,32.4318146]
[1744679261788,0.05897693,128.02,128.0,32.4318146]
[1744679262486,7.87107693,128.02,128.0,32.4318146]
[1744679262984,7.8125,128.01,128.0,32.4318146]
[1744679263885,7.8149,127.97,127.96,561.86]
[1744679264086,7.8149,127.97,127.96,594.24]
[1744679264787,7.8145,127.98,127.96,594.24]
[1744679264987,19.7522365,128.02,127.96,594.24]
[1744679265295,0.05786911,127.98,127.96,594.29638994]
[1744679265901,7.87256911,127.98,127.96,594.29638994]
[1744679266199,0.05786911,127.98,127.96,594.29638994]
[1744679267200,0.05786911,127.98,127.97,7.8149]
[1744679267604,0.05786911,127.98,127.96,594.29638994]
[1744679267902,12.18492605,128.04,127.96,594.29638994]
[1744679268201,12.18492605,128.04,127.96,594.24]
[1744679268604,7.8137,128.0,127.96,602.0553]
[1744679268994,0.05321135,127.99,127.97,0.05017488]
[1744679269303,7.86453673,127.99,127.97,0.05017488]
[1744679269601,7.8143,127.98,127.97,0.05017488]
[1744679270102,0.05043673,127.99,127.97,7.86457488]
[1744679270403,0.05043673,127.99,127.97,0.05017488]
[1744679270903,7.86423673,127.99,127.97,0.05017488]
[1744679271098,0.05043673,127.99,127.97,0.05017488]
[1744679271499,0.05043673,127.99,127.98,32.38]
[1744679271697,0.05043673,127.99,127.97,32.43017488]
[1744679271896,7.8143,127.98,127.97,32.43017488]
[1744679272098,0.05043673,127.99,127.97,32.43017488]
[1744679272301,0.05043673,127.99,127.97,40.24457488]
[1744679272603,0.05043673,127.99,127.97,32.43017488]
[1744679272797,0.05043673,127.99,127.97,40.24487488]
[1744679274202,0.05043673,127.99,127.98,7.8143]
[1744679274706,0.05043673,127.99,127.97,40.24477488]
[1744679274905,0.05043673,127.99,127.97,32.43017488]
[1744679275199,0.05043673,127.99,127.98,7.8143]
[1744679276307,4.0268,128.06,128.01,7.8124]
[1744679276609,12.18492605,128.08,128.02,32.38]
[1744679276806,7.8118,128.03,127.98,1.9924]
[1744679277008,7.8118,128.03,127.99,40.1931]
[1744679277309,7.8118,128.03,127.99,32.38]
[1744679277606,7.87106979,128.02,128.0,0.06001691]
[1744679277804,12.18492605,128.08,128.0,0.06001691]
[1744679278010,7.811,128.04,128.01,7.8123]
[1744679278309,7.811,128.04,128.01,7.86147384]
[1744679278612,0.05985853,128.05,128.01,0.04917384]
[1744679279014,7.86995853,128.05,128.02,7.8115]
[1744679279212,0.05985853,128.05,128.03,32.58]
[1744679279907,0.05985853,128.05,128.01,0.04917384]
[1744679280213,7.811,128.04,128.02,32.58]
[1744679280412,0.05985853,128.05,128.01,0.04917384]
[1744679280612,0.05985853,128.05,128.02,32.58]
[1744679280807,7.8112,128.03,128.02,32.58]
[1744679281013,7.8112,128.03,128.01,0.04917384]
[1744679281213,7.811,128.04,128.02,32.58]
[1744679282011,0.05985853,128.05,128.01,0.04917384]
[1744679282208,0.05985853,128.05,128.02,32.58]
[1744679282611,0.05985853,128.05,128.01,0.04917384]
[1744679282812,6.41285853,128.05,128.02,32.58]
[1744679283016,0.05985853,128.05,128.02,32.58]
[1744679284317,7.8107,128.04,128.02,40.3915]
[1744679285320,7.87015853,128.05,128.02,40.3915]
[1744679286223,7.87015853,128.05,128.04,7.8106]
[1744679286224,0.05985853,128.05,128.04,7.8106]
[1744679286419,0.05985853,128.05,128.02,32.58]
[1744679286820,7.87025853,128.05,128.03,32.58]
[1744679287422,0.05985853,128.05,128.03,32.58]
[1744679287819,18.44282605,128.12,128.04,562.2]
[1744679288023,7.8067,128.11,128.08,7.8077]
[1744679288320,18.39332605,128.15,128.09,32.58]
[1744679288520,18.39332605,128.15,128.1,32.58]
[1744679288521,7.8064,128.11,128.1,32.58]
[1744679288915,0.05596927,128.12,128.09,0.05944552]
[1744679289116,7.8091,128.07,128.04,566.3499]
[1744679289322,12.18492605,128.13,128.05,32.56]
[1744679289514,12.18492605,128.13,128.05,40.3697]
[1744679289714,0.05348271,128.1,128.08,0.05910403]
[1744679289918,0.05348271,128.1,128.09,32.56]
[1744679290520,7.86048271,128.1,128.09,32.56]
[1744679291125,0.05348271,128.1,128.09,32.56]
[1744679291826,7.86048271,128.1,128.09,32.56]
[1744679292026,0.05348271,128.1,128.09,32.56]
[1744679292226,12.18492605,128.17,128.09,32.56]
[1744679292530,7.8048,128.14,128.11,7.8061]
[1744679293321,7.85535352,128.14,128.11,7.86358727]
[1744679293529,7.8052,128.13,128.11,0.05748727]
[1744679294223,7.8058,128.12,128.11,0.05748727]
[1744679294522,7.8058,128.12,128.11,32.61748727]
[1744679298031,7.8054,128.13,128.11,32.61748727]
[1744679298526,7.8051,128.13,128.11,32.61748727]
[1744679299028,7.8058,128.12,128.11,32.61748727]
[1744679302327,7.8082,128.08,128.05,2.132]
[1744679302532,7.8082,128.08,128.06,32.56]